bitfinex/quotes_BTCUSD_20251208
["timestamp","ask_amount","ask_price","bid_price","bid_amount"]
[1765167576693,0.01096864,91169.0,91166.0,0.022379]
[1765167577422,0.005,91170.0,91169.0,0.56447872]
[1765167577564,0.003,91170.0,91169.0,0.58155883]
[1765167577761,0.00023519,91178.0,91169.0,0.58155883]
[1765167577762,0.00023519,91178.0,91176.0,0.24146133]
[1765167578414,0.00023519,91178.0,91176.0,0.02210591]
[1765167579129,0.00062618,91178.0,91177.0,0.02814]
[1765167580202,0.00062618,91178.0,91177.0,0.0116]
[1765167580695,0.00062618,91178.0,91177.0,0.0166]
[1765167580991,0.00062618,91178.0,91177.0,0.05722]
[1765167581142,0.00062618,91178.0,91177.0,0.07932591]
[1765167581930,0.00062618,91178.0,91177.0,0.09718602]
[1765167582126,0.00062618,91178.0,91177.0,0.09990012]
[1765167582295,0.00062618,91178.0,91177.0,0.45311265]
[1765167582842,0.00062618,91178.0,91177.0,0.44811265]
[1765167583050,0.00062618,91178.0,91177.0,0.45811265]
[1765167583477,0.00062618,91178.0,91177.0,0.44911265]
[1765167583692,0.00062618,91178.0,91177.0,0.45711265]
[1765167583907,0.00062618,91178.0,91177.0,0.45811265]
[1765167585649,0.00062618,91178.0,91177.0,0.39460674]
[1765167585799,0.00062618,91178.0,91177.0,0.41749265]
[1765167586449,0.00062618,91178.0,91177.0,0.44730265]
[1765167586858,0.00062618,91178.0,91177.0,0.44830265]
[1765167587626,0.00062618,91178.0,91177.0,0.44930265]
[1765167588066,0.00062618,91178.0,91177.0,0.44830265]
[1765167588279,0.00062618,91178.0,91177.0,0.45230265]
[1765167592528,0.00062618,91178.0,91177.0,0.67165621]
[1765167596851,0.00062618,91178.0,91177.0,0.38357265]
[1765167597069,0.26178009,91178.0,91177.0,0.005]
[1765167597800,0.26178009,91178.0,91177.0,0.004]
[1765167598002,0.01096864,91169.0,91165.0,0.01096912]
[1765167598218,0.01096864,91169.0,91166.0,0.333969]
[1765167599203,0.01096864,91169.0,91166.0,0.010969]
[1765167599558,0.01096864,91169.0,91166.0,0.333969]
[1765167599807,0.0109684,91171.0,91168.0,0.323]
[1765167599931,0.0109684,91171.0,91167.0,0.01096888]
[1765167600135,0.01096852,91170.0,91167.0,0.01096888]
[1765167600864,0.01096852,91170.0,91166.0,0.323]
[1765167600865,0.21937521,91168.0,91166.0,0.323]
[1765167601417,0.00994,91167.0,91166.0,0.002]
[1765167601593,0.00994,91167.0,91164.0,0.323]
[1765167601794,0.01096864,91169.0,91166.0,0.323]
[1765167602124,0.01096852,91170.0,91167.0,0.01096888]
[1765167602436,0.22105189,91178.0,91167.0,0.01096888]
[1765167602437,0.00169894,91178.0,91175.0,0.01096791]
[1765167602792,0.00169894,91178.0,91176.0,0.01158]
[1765167603024,0.00169894,91178.0,91177.0,0.25822356]
[1765167603281,0.00062618,91178.0,91177.0,0.25822356]
[1765167603710,0.00062618,91178.0,91177.0,0.60386958]
[1765167604335,0.00362618,91178.0,91177.0,0.60386958]
[1765167604571,0.01062618,91178.0,91177.0,0.60386958]
[1765167605068,0.00062618,91178.0,91177.0,0.60386958]
[1765167605319,0.00062618,91178.0,91177.0,0.60886958]
[1765167605519,0.00062618,91178.0,91177.0,0.38951602]
[1765167616359,0.00062618,91178.0,91177.0,0.38473011]
[1765167616760,0.00062618,91178.0,91177.0,0.41780165]
[1765167630235,0.00062618,91178.0,91177.0,0.42013595]
[1765167630431,0.00062618,91178.0,91177.0,1.27366895]
[1765167631220,0.00062618,91178.0,91177.0,1.33619194]
[1765167631777,0.00062618,91178.0,91177.0,1.33519194]
[1765167631992,0.00062618,91178.0,91177.0,1.33819194]
[1765167632518,0.00062618,91178.0,91177.0,1.33419194]
[1765167632689,0.00062618,91178.0,91177.0,1.34119194]
[1765167634357,0.00062618,91178.0,91177.0,1.42001198]
[1765167634961,0.00062618,91178.0,91177.0,1.26874307]
[1765167635149,0.00062618,91178.0,91177.0,1.09045194]
[1765167638094,0.00062618,91178.0,91177.0,1.06177394]
[1765167638269,0.00062618,91178.0,91177.0,1.05943964]
[1765167640375,0.00062618,91178.0,91177.0,1.05943964]
[1765167642274,0.00062618,91178.0,91177.0,1.00116364]
[1765167643842,0.00062618,91178.0,91177.0,0.68234164]
[1765167643980,0.00062618,91178.0,91177.0,0.54765565]
[1765167644181,0.00062618,91178.0,91177.0,0.09976165]
[1765167644533,0.00062618,91178.0,91177.0,0.08248165]
[1765167644685,0.00062618,91178.0,91177.0,0.42276165]
[1765167644891,0.00062618,91178.0,91177.0,0.41976165]
[1765167645100,0.00062618,91178.0,91177.0,0.41476165]
[1765167645296,0.00062618,91178.0,91177.0,0.01350574]
[1765167645499,0.00062618,91178.0,91177.0,0.01496563]
[1765167645903,0.01682618,91178.0,91177.0,0.01496563]
[1765167646302,0.00062618,91178.0,91177.0,0.01296563]
[1765167646499,0.00262618,91178.0,91177.0,0.01296563]
[1765167646703,0.00262618,91178.0,91177.0,0.33396563]
[1765167646883,0.00062618,91178.0,91177.0,0.33396563]
[1765167647085,0.00362618,91178.0,91177.0,0.33496563]
[1765167647564,0.00362618,91178.0,91177.0,0.33396563]
[1765167647954,0.04504894,91178.0,91177.0,0.01096563]
[1765167648198,0.04504894,91178.0,91151.0,0.01161]
[1765167648199,0.23036419,91160.0,91154.0,0.07882004]
[1765167648398,0.21941372,91152.0,91151.0,0.01161]
[1765167648606,0.01097044,91154.0,91153.0,0.01728]
[1765167648811,0.01097008,91157.0,91155.0,0.02210591]
[1765167649010,0.0109696,91161.0,91156.0,0.0109702]
[1765167649229,0.01096984,91159.0,91156.0,0.0109702]
[1765167649462,0.0109696,91161.0,91156.0,0.0109702]
[1765167649463,0.01096972,91160.0,91157.0,0.01097008]
[1765167649632,0.01096984,91159.0,91156.0,0.0109702]
[1765167649829,0.01096996,91158.0,91155.0,0.03307623]
[1765167649993,0.01096972,91160.0,91155.0,0.05622623]
[1765167650399,0.01096984,91159.0,91156.0,0.001]
[1765167650637,0.23035155,91165.0,91155.0,0.05622623]
[1765167650846,0.23035155,91165.0,91157.0,0.323]
[1765167651309,0.01096948,91162.0,91158.0,0.01096996]
[1765167651471,0.01096948,91162.0,91159.0,0.01096984]
[1765167652048,0.01096948,91162.0,91158.0,0.01096996]
[1765167652253,0.01087248,91162.0,91158.0,0.01096996]
[1765167652540,0.01096972,91160.0,91158.0,0.003]
[1765167652676,0.01096972,91160.0,91157.0,0.01097008]
[1765167653060,0.01096972,91160.0,91159.0,0.003]
[1765167653327,0.01096972,91160.0,91158.0,0.001]
[1765167653614,0.01096972,91160.0,91158.0,0.004]
[1765167654032,0.01096972,91160.0,91158.0,0.003]
[1765167654237,0.020909,91166.0,91162.0,0.01096948]
[1765167654643,0.01096912,91165.0,91162.0,0.01096948]
[1765167654843,0.020909,91166.0,91164.0,0.02210591]
[1765167654844,0.00994,91166.0,91164.0,0.02210591]
[1765167655197,0.22932046,91166.0,91164.0,0.02210591]
[1765167655866,0.01096852,91170.0,91167.0,0.01096888]
[1765167656070,0.21936786,91172.0,91170.0,0.02210591]
[1765167656295,0.21935745,91176.0,91171.0,0.01161]
[1765167656471,0.01096791,91175.0,91171.0,0.01161]
[1765167656676,0.01266649,91178.0,91175.0,0.01642]
[1765167657006,0.01096803,91174.0,91171.0,0.01161]
[1765167657168,0.21936318,91173.0,91171.0,0.01161]
[1765167657985,0.21936318,91173.0,91164.0,0.52469569]
[1765167657986,0.01096888,91167.0,91153.0,0.01097056]
[1765167658210,0.03912,91172.0,91154.0,0.01732]
[1765167658211,0.0109702,91156.0,91154.0,0.01732]
[1765167658575,0.0109702,91156.0,91155.0,0.03293444]
[1765167658788,0.01096948,91162.0,91158.0,0.33396996]
[1765167659344,0.23036166,91161.0,91158.0,0.323]
[1765167659565,0.23036166,91161.0,91159.0,0.03293444]
[1765167660464,0.23036166,91161.0,91159.0,0.05504035]
[1765167661067,0.23036166,91161.0,91159.0,0.05604035]
[1765167661381,0.01096936,91163.0,91159.0,0.37904035]
[1765167661532,0.01096936,91163.0,91160.0,0.01096972]
[1765167661943,0.01096815,91173.0,91166.0,0.323]
[1765167662259,0.01096815,91173.0,91162.0,0.02722]
[1765167662260,0.01096912,91165.0,91162.0,0.01143]
[1765167662461,0.23035382,91165.0,91162.0,0.01143]
[1765167662847,0.01096876,91168.0,91164.0,0.34975924]
[1765167663073,0.01096852,91170.0,91169.0,0.02210591]
[1765167663698,0.01096864,91169.0,91166.0,0.323]
[1765167664105,0.21938243,91165.0,91164.0,0.001]
[1765167664260,0.23485243,91165.0,91164.0,0.001]
[1765167664495,0.25850243,91165.0,91164.0,0.001]
[1765167665269,0.25850243,91165.0,91146.0,0.01732]
[1765167665270,0.21942576,91147.0,91146.0,0.01732]
[1765167666294,0.21942576,91147.0,91146.0,0.01832]
[1765167666497,0.25854576,91147.0,91146.0,0.001]
[1765167666927,0.01547,91147.0,91146.0,0.001]
[1765167667625,0.03912,91147.0,91146.0,0.001]
[1765167667803,0.03912,91147.0,91146.0,0.002]
[1765167668156,0.01547,91147.0,91146.0,0.002]
[1765167670087,0.22936371,91148.0,91146.0,0.002]
[1765167671148,0.22936371,91148.0,91146.0,0.001]
[1765167671345,0.22936371,91148.0,91146.0,0.002]
[1765167671714,0.22936371,91148.0,91146.0,0.001]
[1765167672267,0.01653,91147.0,91146.0,0.002]
[1765167673216,0.01653,91147.0,91146.0,0.001]
[1765167673632,0.22936371,91148.0,91146.0,0.001]
[1765167673861,0.22936371,91148.0,91146.0,0.002]
[1765167674470,0.22936371,91148.0,91146.0,0.001]
[1765167674716,0.24033487,91148.0,91141.0,0.01208]
[1765167674918,0.24033487,91148.0,91146.0,0.002]
[1765167675500,0.24033487,91148.0,91146.0,0.001]
[1765167676431,0.24033487,91148.0,91146.0,0.02310591]
[1765167676571,0.24033487,91148.0,91146.0,0.02210591]
[1765167677110,0.24033487,91148.0,91145.0,0.00157345]
[1765167677515,0.24033487,91148.0,91146.0,0.001]
[1765167677729,0.24033487,91148.0,91146.0,0.002]
[1765167678221,0.24033487,91148.0,91145.0,0.00157345]
[1765167678519,0.24033487,91148.0,91145.0,0.00257345]
[1765167678946,0.24033487,91148.0,91145.0,0.00357345]
[1765167679365,0.21942817,91146.0,91145.0,0.00357345]
[1765167679648,0.21942817,91146.0,91145.0,0.00257345]
[1765167680895,0.21942817,91146.0,91145.0,0.00357345]
[1765167687345,0.24033487,91148.0,91145.0,0.00357345]
[1765167687542,0.23039487,91148.0,91145.0,0.00357345]
[1765167687742,0.01097104,91149.0,91147.0,0.01208]
[1765167688162,0.21941758,91151.0,91147.0,0.02305128]
[1765167688364,0.23038838,91151.0,91147.0,0.02305128]
[1765167688921,0.25424467,91160.0,91151.0,0.21941613]
[1765167688922,0.01096996,91158.0,91151.0,0.21941613]
[1765167689096,0.2194055,91156.0,91150.0,0.02665092]
[1765167689522,0.2303757,91156.0,91152.0,0.01097068]
[1765167689957,0.01096924,91164.0,91159.0,0.21939687]
[1765167690182,0.01096936,91163.0,91162.0,0.02210591]
[1765167690390,0.23035451,91164.0,91163.0,0.02210591]
[1765167690391,0.01096924,91164.0,91163.0,0.02210591]
[1765167690591,0.01096924,91164.0,91163.0,0.03418591]
[1765167690800,0.010969,91166.0,91165.0,0.02210591]
[1765167691246,0.01097008,91157.0,91153.0,0.01097056]
[1765167691462,0.00994,91154.0,91153.0,0.33397056]
[1765167691664,0.0109696,91161.0,91158.0,0.01096996]
[1765167691805,0.01096936,91163.0,91160.0,0.03303591]
[1765167692008,0.21938965,91162.0,91160.0,0.03303591]
[1765167692209,0.21938965,91162.0,91160.0,0.02210591]
[1765167692440,0.01097008,91157.0,91156.0,0.02210591]
[1765167693637,0.01096984,91159.0,91157.0,0.02210591]
[1765167694019,0.23036924,91158.0,91157.0,0.02210591]
[1765167697393,0.23036924,91158.0,91153.0,0.33451067]
[1765167697394,0.2194085,91155.0,91153.0,0.00054011]
[1765167697571,0.00994,91154.0,91153.0,0.00054011]
[1765167698611,0.21941131,91153.0,91152.0,0.01732]
[1765167698799,0.23594131,91153.0,91152.0,0.01732]
[1765167699066,0.21942576,91147.0,91146.0,0.323]
[1765167699269,0.23595576,91147.0,91145.0,0.00157345]
[1765167699553,0.04144,91146.0,91145.0,0.00157345]
[1765167700600,0.04144,91146.0,91145.0,0.00457345]
[1765167701578,0.04144,91146.0,91145.0,0.00157345]
[1765167702002,0.01653,91146.0,91145.0,0.00257345]
[1765167702511,0.0406,91146.0,91145.0,0.00257345]
[1765167710469,0.01653,91146.0,91145.0,0.00257345]
[1765167710671,0.21942576,91147.0,91145.0,0.00257345]
[1765167711707,0.21942576,91147.0,91145.0,0.00157345]
[1765167712013,0.03972,91146.0,91145.0,0.00257345]
[1765167712657,0.01565,91146.0,91145.0,0.00257345]
[1765167712894,0.01565,91146.0,91145.0,0.00157345]
[1765167713075,0.21942576,91147.0,91145.0,0.00257345]
[1765167713476,0.01097116,91148.0,91145.0,0.00257345]
[1765167713697,0.21942576,91147.0,91145.0,0.00257345]
[1765167714276,0.21942576,91147.0,91146.0,0.02210591]
[1765167715102,0.01097032,91155.0,91146.0,0.02264602]
[1765167715471,0.23038,91154.0,91151.0,0.01528]
[1765167715862,0.23038,91154.0,91151.0,0.02210591]
[1765167716362,0.01097092,91150.0,91148.0,0.02210591]
[1765167716577,0.21942576,91147.0,91146.0,0.00154011]
[1765167717499,0.21942576,91147.0,91146.0,0.00054011]
[1765167718127,0.21942576,91147.0,91146.0,0.00254011]
[1765167718577,0.21942576,91147.0,91146.0,0.00054011]
[1765167718998,0.21942576,91147.0,91146.0,0.00154011]
[1765167719368,0.23039198,91149.0,91146.0,0.00154011]
[1765167720235,0.21942576,91147.0,91146.0,0.00154011]
[1765167720607,0.21942576,91147.0,91146.0,0.00054011]
[1765167720815,0.21942576,91147.0,91146.0,0.00154011]
[1765167721069,0.01097092,91150.0,91147.0,0.02210591]
[1765167721282,0.23038993,91150.0,91147.0,0.02210591]
[1765167721516,0.21942576,91147.0,91146.0,0.00154011]
[1765167721729,0.25875576,91147.0,91146.0,0.001]
[1765167722141,0.21942576,91147.0,91146.0,0.001]
[1765167722384,0.2303726,91157.0,91148.0,0.21942293]
[1765167722625,0.01097104,91149.0,91148.0,0.01169]
[1765167722853,0.23038966,91150.0,91148.0,0.01223011]
[1765167724031,0.01097092,91150.0,91148.0,0.01223011]
[1765167724588,0.01097092,91150.0,91148.0,0.01323011]
[1765167726460,0.01097092,91150.0,91149.0,0.02210591]
[1765167726685,0.21942094,91149.0,91148.0,0.00154011]
[1765167726911,0.25875094,91149.0,91148.0,0.00154011]
[1765167727297,0.23475094,91149.0,91148.0,0.00154011]
[1765167727501,0.23475094,91149.0,91148.0,0.00054011]
[1765167727752,0.0109702,91156.0,91153.0,0.01097056]
[1765167727954,0.01097044,91154.0,91148.0,0.00054011]
[1765167728157,0.0109708,91151.0,91148.0,0.00054011]
[1765167728305,0.0109708,91151.0,91148.0,0.00154011]
[1765167728692,0.0109708,91151.0,91148.0,0.00054011]
[1765167729219,0.02091056,91153.0,91148.0,0.01151127]
[1765167729414,0.02091056,91153.0,91149.0,0.01097104]
[1765167729963,0.02091056,91153.0,91150.0,0.01097092]
[1765167730212,0.00994,91153.0,91151.0,0.21941613]
[1765167730382,0.01097008,91157.0,91153.0,0.03307647]
[1765167731629,0.01097008,91157.0,91153.0,0.03407647]
[1765167731825,0.0109702,91156.0,91153.0,0.02310591]
[1765167732191,0.2194065,91155.0,91153.0,0.001]
[1765167733397,0.01097044,91154.0,91151.0,0.02210591]
[1765167734287,0.01097044,91154.0,91153.0,0.001]
[1765167734480,0.01097044,91154.0,91151.0,0.03307671]
[1765167734481,0.01097032,91155.0,91151.0,0.03307671]
[1765167734688,0.01097008,91157.0,91153.0,0.01097056]
[1765167735099,0.01097008,91157.0,91154.0,0.01097044]
[1765167735301,0.0109702,91156.0,91153.0,0.01097056]
[1765167735516,0.0109702,91156.0,91153.0,0.001]
[1765167735718,0.0109702,91156.0,91153.0,0.01197056]
[1765167736535,0.0109702,91156.0,91153.0,0.01097056]
[1765167736710,0.21939283,91161.0,91157.0,0.02210591]
[1765167736711,0.0109696,91161.0,91157.0,0.02210591]
[1765167736921,0.0109696,91161.0,91157.0,0.25247749]
[1765167737054,0.0109696,91161.0,91157.0,0.27613749]
[1765167737254,0.0109696,91161.0,91158.0,0.02193956]
[1765167737855,0.01096948,91162.0,91159.0,0.01096984]
[1765167738552,0.001,91161.0,91160.0,0.01096972]
[1765167739668,0.001,91162.0,91161.0,0.21939206]
[1765167739860,0.01096888,91167.0,91162.0,0.01096948]
[1765167740375,0.2303466,91167.0,91162.0,0.01096948]
[1765167741143,0.01096948,91162.0,91159.0,0.01096984]
[1765167741519,0.23036166,91161.0,91158.0,0.0109696]
[1765167741669,0.01573,91160.0,91158.0,0.0109696]
[1765167742659,0.01573,91160.0,91158.0,0.2303682]
[1765167743289,0.01573,91160.0,91158.0,0.0109696]
[1765167743663,0.01673,91160.0,91158.0,0.0109696]
[1765167748435,0.001,91160.0,91159.0,0.27021687]
[1765167748811,0.001,91160.0,91159.0,0.29286289]
[1765167749027,0.001,91160.0,91159.0,0.02264602]
[1765167749228,0.001,91160.0,91159.0,0.03996602]
[1765167749378,0.00994,91161.0,91159.0,0.03996602]
[1765167749762,0.001,91160.0,91159.0,0.02264602]
[1765167750421,0.001,91160.0,91159.0,0.0336155]
[1765167755271,0.001,91160.0,91159.0,0.25301237]
[1765167755479,0.04165,91160.0,91159.0,0.01150959]
[1765167756376,0.001,91160.0,91159.0,0.25301237]
[1765167756799,0.001,91160.0,91159.0,0.01150959]
[1765167761189,0.22039447,91160.0,91159.0,0.01150959]
[1765167761369,0.23612447,91160.0,91159.0,0.01150959]
[1765167763442,0.23612447,91160.0,91159.0,0.01096948]
[1765167766974,0.01673,91160.0,91159.0,0.01096948]
[1765167767940,0.25919447,91160.0,91159.0,0.01096948]
[1765167770709,0.21940891,91154.0,91153.0,0.01732]
[1765167770912,0.24500891,91154.0,91153.0,0.01732]
[1765167771278,0.24500891,91154.0,91153.0,0.05025852]
[1765167771883,0.24500891,91154.0,91153.0,0.05225852]
[1765167772233,0.24500891,91154.0,91153.0,0.05325852]
[1765167772454,0.0256,91154.0,91153.0,0.05325852]
[1765167772599,0.23037618,91156.0,91153.0,0.37625852]
[1765167772800,0.0109696,91161.0,91159.0,0.02210591]
[1765167773207,0.21939447,91160.0,91159.0,0.02210591]
[1765167773407,0.0109696,91161.0,91159.0,0.02210591]
[1765167774234,0.01096948,91162.0,91159.0,0.03307575]
[1765167774410,0.001,91161.0,91159.0,0.03307575]
[1765167775258,0.01096948,91162.0,91159.0,0.02210591]
[1765167775450,0.0109696,91161.0,91157.0,0.01097008]
[1765167775872,0.23036419,91160.0,91156.0,0.06601463]
[1765167776715,0.23036901,91159.0,91156.0,0.05504443]
[1765167777428,0.01096972,91160.0,91157.0,0.01097008]
[1765167778468,0.0109696,91161.0,91158.0,0.01096996]
[1765167778891,0.23036419,91160.0,91156.0,0.05504443]
[1765167779939,0.01096984,91159.0,91156.0,0.05504443]
[1765167781258,0.00994,91163.0,91159.0,0.01096984]
[1765167781642,0.0109696,91161.0,91157.0,0.01097008]
[1765167782829,0.23036419,91160.0,91157.0,0.01097008]
[1765167783025,0.01096984,91159.0,91156.0,0.05504443]
[1765167783446,0.01096984,91159.0,91156.0,0.06601463]
[1765167783645,0.0109696,91161.0,91157.0,0.23037177]
[1765167783883,0.0109696,91161.0,91157.0,0.01097008]
[1765167784088,0.23036587,91160.0,91156.0,0.05504443]
[1765167784407,0.00994,91158.0,91156.0,0.03293852]
[1765167784619,0.00994,91176.0,91163.0,0.21938725]
[1765167784823,0.00994,91176.0,91167.0,0.01096888]
[1765167784824,0.0109684,91171.0,91167.0,0.01096888]
[1765167785021,0.00994,91176.0,91173.0,0.01096815]
[1765167785589,0.00130795,91178.0,91173.0,0.23033078]
[1765167785788,0.00130795,91178.0,91175.0,0.01096791]
[1765167786160,0.00169894,91178.0,91175.0,0.01096791]
[1765167786804,0.00169894,91178.0,91176.0,0.21935597]
[1765167787866,0.00269894,91178.0,91176.0,0.21935597]
[1765167789176,0.00269894,91178.0,91175.0,0.01096791]
[1765167789521,0.00269894,91178.0,91175.0,0.23032563]
[1765167789957,0.01096767,91177.0,91173.0,0.23033078]
[1765167790156,0.01096767,91177.0,91174.0,0.01096803]
[1765167790762,0.01096779,91176.0,91173.0,0.01096815]
[1765167790966,0.01096779,91176.0,91174.0,0.02210591]
[1765167791502,0.01096767,91177.0,91174.0,0.02210591]
[1765167792056,0.01096767,91177.0,91174.0,0.05503717]
[1765167792257,0.01096767,91177.0,91174.0,0.0660052]
[1765167792499,0.00169894,91178.0,91175.0,0.01096791]
[1765167793141,0.00169894,91178.0,91176.0,0.21935597]
[1765167794521,0.00269894,91178.0,91176.0,0.21935597]
[1765167795261,0.01366649,91178.0,91175.0,0.02193522]
[1765167795934,0.01366649,91178.0,91175.0,0.01096791]
[1765167796574,0.00169894,91178.0,91175.0,0.01096791]
[1765167798166,0.01096767,91177.0,91174.0,0.02210591]
[1765167798366,0.21935597,91176.0,91174.0,0.02210591]
[1765167798667,0.01096791,91175.0,91172.0,0.01096743]
[1765167798889,0.00994,91173.0,91172.0,0.01096743]
[1765167800292,0.00994,91173.0,91172.0,0.01196743]
[1765167807417,0.02612,91173.0,91172.0,0.01196743]
[1765167807627,0.00994,91173.0,91172.0,0.01196743]
[1765167808029,0.00994,91173.0,91172.0,0.01236955]
[1765167808228,0.00169894,91178.0,91174.0,0.01096803]
[1765167808436,0.00169894,91178.0,91177.0,0.02210591]
[1765167808844,0.00169894,91178.0,91177.0,0.02236102]
[1765167809018,0.00169894,91178.0,91177.0,0.00025511]
[1765167809225,0.01163894,91178.0,91177.0,0.00025511]
[1765167809875,0.02781894,91178.0,91177.0,0.00025511]
[1765167810066,0.05312894,91178.0,91177.0,0.00025511]
[1765167810467,0.02881894,91178.0,91177.0,0.00025511]
[1765167810873,0.05312894,91178.0,91177.0,0.00025511]
[1765167811297,0.06955101,91178.0,91177.0,0.00025511]
[1765167811877,0.079822,91178.0,91177.0,0.00025511]
[1765167812900,0.082822,91178.0,91177.0,0.00025511]
[1765167813115,0.11401799,91178.0,91177.0,0.00025511]
[1765167815548,0.091822,91178.0,91177.0,0.00025511]
[1765167815872,0.109142,91178.0,91177.0,0.00025511]
[1765167816702,0.09887101,91178.0,91177.0,0.00025511]
[1765167816869,0.08244894,91178.0,91177.0,0.00025511]
[1765167817303,0.06512894,91178.0,91177.0,0.00025511]
[1765167817852,0.02463894,91178.0,91177.0,0.00025511]
[1765167818055,0.06512894,91178.0,91177.0,0.00025511]
[1765167818568,0.06112894,91178.0,91177.0,0.00025511]
[1765167818798,0.03681894,91178.0,91177.0,0.00025511]
[1765167818998,0.02781894,91178.0,91177.0,0.00025511]
[1765167819205,0.02781894,91178.0,91177.0,0.00125511]
[1765167819749,0.01163894,91178.0,91177.0,0.00125511]
[1765167819967,0.00169894,91178.0,91177.0,0.00125511]
[1765167820170,0.00169894,91178.0,91177.0,0.02336102]
[1765167820868,0.22105009,91178.0,91177.0,0.02336102]
[1765167821093,0.00169894,91178.0,91177.0,0.02336102]
[1765167823968,0.00169894,91178.0,91177.0,0.27114458]
[1765167824104,0.00169894,91178.0,91177.0,0.03567102]
[1765167825019,0.00062618,91178.0,91177.0,0.01356511]
[1765167825631,0.00062618,91178.0,91177.0,0.00125511]
[1765167827084,0.00062618,91178.0,91177.0,0.04217511]
[1765167827296,0.00062618,91178.0,91177.0,0.06428102]
[1765167828438,0.00062618,91178.0,91177.0,0.03948102]
[1765167829706,0.00062618,91178.0,91177.0,0.05189102]
[1765167829939,0.00062618,91178.0,91177.0,0.07669102]
[1765167830795,0.00062618,91178.0,91177.0,0.05189102]
[1765167831417,0.00062618,91178.0,91177.0,0.03577102]
[1765167834041,0.00062618,91178.0,91177.0,0.06057102]
[1765167834202,0.00062618,91178.0,91177.0,0.07669102]
[1765167834411,0.00062618,91178.0,91177.0,0.05189102]
[1765167834904,0.00062618,91178.0,91177.0,0.07669102]
[1765167836116,0.00062618,91178.0,91177.0,0.05512522]
[1765167836328,0.00062618,91178.0,91177.0,0.75501947]
[1765167836527,0.00062618,91178.0,91177.0,0.76243479]
[1765167837664,0.00062618,91178.0,91177.0,0.76643479]
[1765167837886,0.00062618,91178.0,91177.0,0.76543479]
[1765167838256,0.00062618,91178.0,91177.0,0.77643479]
[1765167838867,0.00062618,91178.0,91177.0,0.77526013]
[1765167839911,0.00062618,91178.0,91177.0,0.59366113]
[1765167840323,0.00062618,91178.0,91177.0,0.61294021]
[1765167840577,0.00062618,91178.0,91177.0,0.61472321]
[1765167840879,0.00062618,91178.0,91177.0,0.59021321]
[1765167841034,0.00062618,91178.0,91177.0,0.52031413]
[1765167841214,0.00062618,91178.0,91177.0,0.57920481]
[1765167841428,0.00062618,91178.0,91177.0,0.58620481]
[1765167841632,0.00062618,91178.0,91177.0,0.61270781]
[1765167842068,0.00062618,91178.0,91177.0,0.42355113]
[1765167842392,0.00062618,91178.0,91177.0,0.42655113]
[1765167842551,0.00062618,91178.0,91177.0,0.55253713]
[1765167842734,0.00062618,91178.0,91177.0,0.55249713]
[1765167842921,0.00062618,91178.0,91177.0,0.53521713]
[1765167843131,0.00062618,91178.0,91177.0,0.55249713]
[1765167843581,0.00062618,91178.0,91177.0,0.55363309]
[1765167844229,0.00062618,91178.0,91177.0,0.61615608]
[1765167844803,0.00062618,91178.0,91177.0,0.61502012]
[1765167845889,0.00062618,91178.0,91177.0,0.61615608]
[1765167848542,0.00062618,91178.0,91177.0,0.61502012]
[1765167850639,0.00062618,91178.0,91177.0,0.58541942]
[1765167856204,0.00062618,91178.0,91177.0,0.54603351]
[1765167856443,0.00062618,91178.0,91177.0,0.51834057]
[1765167856618,0.00062618,91178.0,91177.0,0.11163342]
[1765167856914,0.00062618,91178.0,91177.0,0.43463342]
[1765167857539,0.00062618,91178.0,91177.0,0.45898342]
[1765167859531,0.00062618,91178.0,91177.0,0.95744342]
[1765167859736,0.00062618,91178.0,91177.0,0.99894078]
[1765167859908,0.00062618,91178.0,91177.0,1.02104669]
[1765167860686,0.00062618,91178.0,91177.0,0.76892942]
[1765167866492,0.00062618,91178.0,91177.0,0.71716242]
[1765167866859,0.00062618,91178.0,91177.0,0.56790351]
[1765167867070,0.00062618,91178.0,91177.0,0.59000942]
[1765167869919,0.00062618,91178.0,91177.0,0.58635642]
[1765167884774,0.00062618,91178.0,91177.0,0.53357351]
[1765167885019,0.00062618,91178.0,91177.0,0.54320851]
[1765167885228,0.00062618,91178.0,91177.0,0.43687751]
[1765167885435,0.00062618,91178.0,91177.0,0.56671142]
[1765167886288,0.00062618,91178.0,91177.0,0.56488042]
[1765167887520,0.00062618,91178.0,91177.0,0.86693042]
[1765167887694,0.00062618,91178.0,91177.0,0.85507442]
[1765167895824,0.00062618,91178.0,91177.0,0.75581851]
[1765167896022,0.00062618,91178.0,91177.0,0.77309851]
[1765167896225,0.00062618,91178.0,91177.0,0.07340751]
[1765167896455,0.00062618,91178.0,91177.0,0.04371751]
[1765167901021,0.00062618,91178.0,91177.0,0.08231751]
[1765167901185,0.00062618,91178.0,91177.0,0.07531751]
[1765167901429,0.00062618,91178.0,91177.0,0.07231751]
[1765167901609,0.00062618,91178.0,91177.0,0.07631751]
[1765167903258,0.00062618,91178.0,91177.0,0.43833666]
[1765167903414,0.00062618,91178.0,91177.0,0.42142342]
[1765167903612,0.00062618,91178.0,91177.0,1.24753442]
[1765167904736,0.00062618,91178.0,91177.0,0.91405942]
[1765167905101,0.00062618,91178.0,91177.0,0.81038542]
[1765167907454,0.00062618,91178.0,91177.0,0.8112991]
[1765167910286,0.00062618,91178.0,91177.0,0.81038542]
[1765167910841,0.00062618,91178.0,91177.0,0.85617898]
[1765167919888,0.00062618,91178.0,91177.0,0.79875007]
[1765167920094,0.00062618,91178.0,91177.0,0.58007107]
[1765167920295,0.00062618,91178.0,91177.0,0.59735107]
[1765167920745,0.00062618,91178.0,91177.0,0.65908698]
[1765167921096,0.00062618,91178.0,91177.0,0.65808698]
[1765167921497,0.00062618,91178.0,91177.0,0.65908698]
[1765167922351,0.00062618,91178.0,91177.0,1.24239988]
[1765167922604,0.00062618,91178.0,91177.0,1.24353098]
[1765167922808,0.00062618,91178.0,91177.0,1.24253098]
[1765167923176,0.00062618,91178.0,91177.0,1.24553098]
[1765167923402,0.00062618,91178.0,91177.0,1.24253098]
[1765167923821,0.00062618,91178.0,91177.0,1.24953098]
[1765167924020,0.00062618,91178.0,91177.0,0.96944598]
[1765167924204,0.00062618,91178.0,91177.0,0.97044598]
[1765167924522,0.00062618,91178.0,91177.0,0.62370107]
[1765167924724,0.00062618,91178.0,91177.0,0.60035107]
[1765167924864,0.00062618,91178.0,91177.0,0.66208698]
[1765167925072,0.00062618,91178.0,91177.0,0.66408698]
[1765167925472,0.00062618,91178.0,91177.0,0.65508698]
[1765167925931,0.00062618,91178.0,91177.0,0.66008698]
[1765167926137,0.00062618,91178.0,91177.0,0.91158698]
[1765167926363,0.00062618,91178.0,91177.0,0.91245588]
[1765167926901,0.00062618,91178.0,91177.0,0.97497887]
[1765167927536,0.00062618,91178.0,91177.0,1.05379891]
[1765167927893,0.00062618,91178.0,91177.0,1.05279891]
[1765167928321,0.00062618,91178.0,91177.0,1.05079891]